Cogmind - Beta 17 @@@ ROGUE MODE // 2026.07.30 @ 22:57:47 Player: mischief_2000 Result: Destroyed by H-61 Shepherd with Heavy Assault Cannon Performance ------------- Evolutions (2) 1000 Regions Visited (5) 1000 Robots Destroyed (116) 580 Value Destroyed (4595) 4595 Prototype IDs (13) 260 Alien Tech Used (0) 0 Bonus (886) 886 TOTAL SCORE: 8321 Bonus ------- High Alert Combat Kills 579 Follower Combat Kills 107 Entered Garrisons 200 Cogmind --------- Core Integrity 0/550 Matter 12/300 Energy 24/100 System Corruption 0% Temperature Cool (49) Movement Core (1550) Ox30 Location -8/Materials Parts ------- > --- POWER (1) -------- (None) > --- PROPULSION (4) --- (None) > --- UTILITY (3) ------ Huge Storage Unit Kinecellerator > --- WEAPON (3) ------- Gatling Laser Gatling Laser > --- INVENTORY (25) --- Light Treads Armored Treads Compact Wheel High-capacity Storage Unit Kinecellerator Kinecellerator Hardened Heavy Armor Plating Hardened Heavy Armor Plating Hardened Heavy Armor Plating Hacking Suite Gatling Laser Gatling Laser Plasma Rifle Enhanced Autogun Katana Peak State ------------ > --- POWER ------------ Deuterium Engine > --- PROPULSION ------- Light Treads Light Treads Armored Huge Wheel > --- UTILITY ---------- Improved Heat Sink Huge Storage Unit Kinecellerator > --- WEAPON ----------- Enhanced Autogun Enhanced Autogun Enhanced Autogun > --- INVENTORY -------- Deuterium Engine Deuterium Engine Light Treads Light Treads Light Treads Light Treads Light Treads Compact Wheel Armored Huge Wheel Hardened Heavy Armor Plating Hardened Heavy Armor Plating Hardened Heavy Armor Plating Thermal Shield Plasma Rifle Plasma Rifle Advanced Assault Cannon Advanced Assault Cannon Advanced Assault Cannon Grenade Launcher Rocket Launcher Katana [Rating: 40] Favorites ----------- Power Deuterium Engine Engine Deuterium Engine Power Core Light Nuclear Core Propulsion Light Treads Treads Light Treads Wheel Compact Wheel Utility Huge Storage Unit Device Improved Heat Sink Storage Huge Storage Unit Hackware Hacking Suite Protection Hardened Medium Armor Plating Weapon Enhanced Autogun Energy Gun EM Shotgun Ballistic Gun Enhanced Autogun Ballistic Cannon Advanced Assault Cannon Launcher Rocket Launcher Slashing Weapon Katana Build | -11 -10 -9 -8 -8 -8 ------- Run | Yrd Mat Mat Mat Gar Mat Slots Evolved 4 | . . 2 2 . . Power . | . . . . . . Propulsion 2 | . . 1 1 . . Utility 1 | . . 1 . . . Weapon 1 | . . . 1 . . Parts Attached 63 | 6 5 8 18 5 21 Power 8 | 1 . 2 3 . 2 Engine 5 | 1 . 2 1 . 1 Core 3 | . . . 2 . 1 Reactor . | . . . . . . Propulsion 17 | 2 2 1 5 2 5 Treads 11 | 2 . 1 3 1 4 Leg . | . . . . . . Wheel 6 | . 2 . 2 1 1 Hover . | . . . . . . Flight . | . . . . . . Utility 13 | 1 2 1 4 1 4 Device 6 | . 1 . 2 . 3 Storage 2 | 1 1 . . . . Processor . | . . . . . . Hackware 1 | . . . . 1 . Protection 4 | . . 1 2 . 1 Artifact . | . . . . . . Weapon 25 | 2 1 4 6 2 10 Energy Gun 11 | 1 1 3 3 . 3 Energy Cannon . | . . . . . . Ballistic Gun 6 | 1 . . 3 . 2 Ballistic Cannon 3 | . . . . . 3 Launcher 4 | . . 1 . 1 2 Special Weapon . | . . . . . . Impact Weapon . | . . . . . . Slashing Weapon 1 | . . . . 1 . Piercing Weapon . | . . . . . . Special Melee Weapon . | . . . . . . Unidentified Prototypes 5 | . . 2 1 . 2 Parts Lost 19 | . . 1 1 . 17 Power 3 | . . 1 . . 2 Propulsion 7 | . . . . . 7 Utility 2 | . . . 1 . 1 Weapon 7 | . . . . . 7 Highest Loss Streak 13 | . . 1 1 . 13 To Critical Strikes . | . . . . . . Average Backups 21 | 3 16 24 24 22 20 Power 1 | . 1 1 2 2 1 Propulsion 7 | 2 5 5 9 9 6 Utility 3 | . 1 3 5 3 5 Weapon 8 | . 8 13 7 8 7 Tool/Special . | . . . . . . Unused Backups 44 | . 2 11 4 12 15 Power 2 | . . 1 . . 1 Propulsion 12 | . 2 . 1 6 3 Utility 13 | . . . 3 2 8 Weapon 17 | . . 10 . 4 3 Tool/Special . | . . . . . . Average Slot Usage (%) 90 | . 85 91 97 92 87 Engine 8 | . 14 10 4 9 6 Core 1 | . . . 4 . 2 Treads 18 | . 17 19 18 18 17 Wheel 12 | . 10 11 17 15 8 Device 9 | . . 11 7 9 17 Storage 10 | . 14 11 9 9 9 Protection 3 | . . 5 9 4 . Energy Gun 7 | . 14 18 14 . 1 Ballistic Gun 15 | . 14 3 11 22 17 Ballistic Cannon 1 | . . . . . 5 Slashing Weapon 1 | . . . . 4 . Peak Build Rating 40 | 6 11 19 31 36 40 Average Rating 26 | 4 8 15 25 31 37 On Entrance 17 | . 6 11 19 31 36 Avg Prop Armor Cover (%) 13 | . 14 16 12 13 13 Naked Turns . | . . . . . . Heaviest Build 119 | 10 88 99 107 108 119 Greatest Support 40 | 40 40 16 32 28 40 Greatest Overweight (x) 10 | . 5 6 5 10 5 Average Overweight (x) 3 | . 3 5 3 3 3 Largest Inventory Capacity 25 | 8 25 25 25 25 25 Average Capacity 23 | 7 20 25 25 25 25 Most Carried 25 | 6 25 25 25 25 25 Average Carried 22 | 3 16 24 24 24 24 Final Capacity 25 | 8 25 25 25 25 25 Final Carried 25 | 6 25 25 25 25 18 Class Distribution -------------------- 31% | Mutant 19% | Scavenger-Gunner 13% | Tank 13% | Scavenger-Mutant 11% | Gunner 9% | Scavenger-Tank Dominant Class ---------------- Mutant | -10/Materials Mutant | -9/Materials Tank | -8/Materials Scavenger-Mutant | -8/Garrison Gunner | -8/Materials Resources | -11 -10 -9 -8 -8 -8 ----------- Run | Yrd Mat Mat Mat Gar Mat Matter Collected 2754 | 205 120 173 512 626 1118 Remotely . | . . . . . . Salvage Created 4410 | . 158 448 1503 859 1442 Parts 253 | . 17 33 67 44 92 Haulers Intercepted 6 | . 1 1 1 . 3 Recyclers Shooed 1 | . . . 1 . . Parts Field Recycled . | . . . . . . Retrieved Matter . | . . . . . . Parts Self-Destructed . | . . . . . . Prevented . | . . . . . . Parts Restored . | . . . . . . Kills | -11 -10 -9 -8 -8 -8 ------- Run | Yrd Mat Mat Mat Gar Mat Combat Hostiles Destroyed 84 | . 4 11 22 20 27 Melee 2 | . . . . 2 . Guns 61 | . 4 5 22 13 17 Cannons 5 | . . . . . 5 AOE 16 | . . 6 . 5 5 Classes Destroyed 15 | . 4 3 5 1 2 Worker 10 | . . 1 2 . 7 Builder 2 | . . . 1 . 1 Hauler 6 | . 1 1 1 . 3 Recycler 3 | . . . 3 . . Mechanic 2 | . . . . . 2 Operator 2 | . 1 . . . 1 Watcher 7 | . . 1 3 . 3 Swarmer 20 | . 3 3 4 4 6 Saboteur 3 | . . . . 3 . Grunt 36 | . 1 5 7 10 13 Brawler 3 | . . . 2 . 1 Duelist 3 | . . . 2 . 1 Sentry 16 | . . 3 6 3 4 Specialist 2 | . . . . . 2 Hunter 1 | . . . 1 . . Best Kill Streak 8 | . 3 6 6 8 6 Combat Bots Only 8 | . 3 5 5 8 4 Max Kills in Single Turn 2 | . 1 2 2 2 2 Gunslinging 1 | . . . 1 . . Exploded 2 | . . 2 . 2 2 Melee 1 | . . . . 1 . Uniques/NPCs Destroyed . | . . . . . . Combat | -11 -10 -9 -8 -8 -8 -------- Run | Yrd Mat Mat Mat Gar Mat Hostile Shots Fired 376 | . 21 64 53 57 181 Missed 98 | . 3 25 9 14 47 Hits 278 | . 18 39 44 43 134 Melee 6 | . . . 5 1 . Projectile 272 | . 18 39 39 42 134 Critical Strikes 14 | . 1 1 4 1 7 Damage Taken 4442 | . 131 426 660 598 2627 Core 672 | . 14 87 146 125 300 Absorbed by Shields 13 | . . . . 13 . Regen/Repaired (Parts) 18 | . . . 18 . . Core Remaining (%) 90 | 100 94 78 . . . Volleys Fired 259 | . 30 27 64 38 100 Largest 3 | . 2 2 3 3 3 Hottest 160 | . 76 90 135 83 160 Shots Fired 660 | . 59 48 180 108 265 Gun 597 | . 59 43 180 102 213 Cannon 44 | . . . . . 44 Launcher 19 | . . 5 . 6 8 Special . | . . . . . . Kinetic 470 | . 30 13 78 102 247 Thermal 47 | . 29 8 . . 10 Explosive 19 | . . 5 . 6 8 Electromagnetic 124 | . . 22 102 . . Robot Hit Streak 12 | . 7 8 11 12 8 Robot Miss Streak 6 | . 6 5 4 3 5 Penetration Max . | . . . . . . Secondary Targets 6 | . . . 2 3 1 Max Gunslinging Chain 1 | . . . 1 1 1 Shots Hit Robots 405 | . 35 28 117 90 135 Core Hits 220 | . 14 24 72 35 75 Critical Kills . | . . . . . . Critical Parts Destroyed 1 | . . . . . 1 Critical Strikes 6 | . 2 . . . 4 Burn 2 | . 2 . . . . Destroy 1 | . . . . . 1 Blast 3 | . . . . . 3 Melee Attacks 49 | . . . . 49 . Impact . | . . . . . . Slashing 49 | . . . . 49 . Piercing . | . . . . . . Sneak Attacks 1 | . . . . 1 . Combat Hostiles . | . . . . . . Follow-up Attacks . | . . . . . . Damage Inflicted 10020 | . 348 814 1868 3263 3727 Guns 5521 | . 348 343 1817 880 2133 Cannons 746 | . . . . . 746 Explosions 2039 | . . 471 51 710 807 Melee 1673 | . . . . 1673 . Ramming 41 | . . . . . 41 Kinetic 4533 | . 147 45 736 880 2725 Thermal 559 | . 201 153 51 . 154 Explosive 1846 | . . 391 . 710 745 Electromagnetic 1368 | . . 225 1081 . 62 Impact . | . . . . . . Slashing 1673 | . . . . 1673 . Piercing . | . . . . . . Highest Corruption 1 | . 1 . . . . Average Corruption 1 | . 1 . . . . Corruption Purged . | . . . . . . Corruption Blocked . | . . . . . . Effects 1 | . 1 . . . . Message Errors 1 | . 1 . . . . Overload Shots . | . . . . . . Overflow Damage 160 | . . 37 . 81 42 Projectiles . | . . . . . . Explosions 95 | . . 37 . 16 42 Melee 65 | . . . . 65 . Knockbacks 5 | . . . . . 5 Impact . | . . . . . . Kinetic 4 | . . . . . 4 Secondary 1 | . . . . . 1 Self-Inflicted Damage 170 | . . . . . 170 Shots 4 | . . . . . 4 Rammed 1 | . . . . . 1 Targets Rammed 1 | . . . . . 1 Kicked . | . . . . . . Crushed . | . . . . . . Highest Temperature 350 | . 88 22 350 75 122 Average Temperature 48 | . 29 6 76 16 32 Received Heat Transfer 1290 | . 6 159 180 234 711 Effects 3 | . . . 3 . . Shutdowns 1 | . . . 1 . . Interference 2 | . . . 2 . . Siege Activations . | . . . . . . Martial Activations . | . . . . . . Shielding Activations . | . . . . . . Robots Disrupted 1 | . . 1 . . . Combat Hostiles 1 | . . 1 . . . Robots Corrupted . | . . . . . . Combat Hostiles . | . . . . . . Parts Fried 6 | . . . 6 . . Impact Corruptions . | . . . . . . Robots Melted . | . . . . . . Combat Hostiles . | . . . . . . Parts Melted 1 | . . . . . 1 Heat Transferred 1279 | . 644 235 50 . 350 Parts Sabotaged 3 | . . . . 3 . Parts Stolen . | . . . . . . Parts Stripped . | . . . . . . Power Chain Reactions 2 | . . 1 1 . . Alert | -11 -10 -9 -8 -8 -8 ------- Run | Yrd Mat Mat Mat Gar Mat Maximum Alert Level 4 | . . . 1 4 3 Low Security (%) 34 | 100 100 100 38 . . Level 1 14 | . . . 61 13 . Level 2 17 | . . . . 26 37 Level 3 30 | . . . . 48 62 Level 4 3 | . . . . 11 . Level 5 . | . . . . . . High Security . | . . . . . . Max Security . | . . . . . . Peak Influence 1186 | . 60 173 370 1186 955 Initial 577 | . . 1 69 228 577 Average 444 | . 6 101 236 744 702 Influence Increases 3178 | . 139 338 685 998 1018 Destroy 0b10 Robot/C 1740 | . 80 220 440 460 540 Destroy 0b10 Robot/NC 170 | . 10 15 50 10 85 Destroy Leader 386 | . 22 64 138 30 132 Allied During Kill 15 | . . . . 15 . Successful Hack 61 | . 27 8 8 14 4 Disable Machine 165 | . . . . 15 150 Anti-Garrison Action 400 | . . . . 400 . Destroy Structure 166 | . . 31 4 54 77 Lose Combat Pursuer 75 | . . . 45 . 30 Influence Decreases 2267 | . 133 179 498 164 1293 Entered New Map 834 | . . 5 96 124 609 Time Decay 1213 | . 133 174 392 . 514 Lost Part 180 | . . . 10 . 170 Lost Ally 40 | . . . . 40 . Squads Dispatched 19 | . 2 2 6 . 9 Investigation 5 | . 2 2 . . 1 Extermination . | . . . . . . Reinforcement 6 | . . . . . 6 Assault 1 | . . . . . 1 Garrison 7 | . . . 6 . 1 Intercept . | . . . . . . Searches Triggered . | . . . . . . Construction Impeded 1 | . . . . . 1 Haulers Reinforced . | . . . . . . Active Scanning Responses . | . . . . . . Cargo Convoy Interrupts . | . . . . . . Stealth | -11 -10 -9 -8 -8 -8 --------- Run | Yrd Mat Mat Mat Gar Mat Distress Signals 7 | . 1 . 4 . 2 Communications Jammed . | . . . . . . Distress Signals . | . . . . . . Times Spotted 114 | . 5 14 30 24 41 Peak Tracking Total 7 | . 4 5 7 6 5 Tactical Retreats 4 | . . . 2 . 2 Traps | -11 -10 -9 -8 -8 -8 ------- Run | Yrd Mat Mat Mat Gar Mat Traps Triggered 7 | . 2 . . 4 1 Indirectly . | . . . . . . Trap Hack Attempts . | . . . . . . Triggered . | . . . . . . Disarmed . | . . . . . . Reprogrammed . | . . . . . . Reused . | . . . . . . Traps Extracted . | . . . . . . Installed . | . . . . . . Triggered . | . . . . . . Machines | -11 -10 -9 -8 -8 -8 ---------- Run | Yrd Mat Mat Mat Gar Mat Machines Disabled 17 | . . . . 7 10 Max in Single Turn 1 | . . . . 1 1 Garrison Relay 6 | . . . . 6 . Machines Repaired . | . . . . . . Machines Dismantled . | . . . . . . Machines Sabotaged . | . . . . . . Overloaded Fab Kills . | . . . . . . Hacking | -11 -10 -9 -8 -8 -8 --------- Run | Yrd Mat Mat Mat Gar Mat Machines Accessed 21 | . 7 2 6 2 4 Terminals 17 | . 6 2 3 2 4 Fabricators . | . . . . . . Repair Stations 1 | . . . 1 . . Recycling Units 1 | . 1 . . . . Scanalyzers 1 | . . . 1 . . Garrison Access 1 | . . . 1 . . Total Hacks 57 | . 21 5 18 2 11 Successful 28 | . 7 2 12 2 5 Failed 29 | . 14 3 6 . 6 Catastrophic 4 | . 1 . 2 . 1 Database Lockouts . | . . . . . . Manual 26 | . 12 1 4 . 9 Terminals 49 | . 20 5 11 2 11 Fabricators . | . . . . . . Repair Stations 3 | . . . 3 . . Recycling Units 1 | . 1 . . . . Scanalyzers 3 | . . . 3 . . Garrison Access 1 | . . . 1 . . Terminal Hacks 17 | . 4 2 6 2 3 Part Schematic 1 | . 1 . . . . Robot Analysis 1 | . 1 . . . . Prototype ID Bank 4 | . 1 1 2 . . Branch Access Points 2 | . . 1 1 . . Emergency Access Points 2 | . . . 1 . 1 Locate Traps 2 | . 1 . 1 . . Hauler Manifests 1 | . . . 1 . . Zone Layout 2 | . . . . . 2 Garrison Registry 1 | . . . . 1 . Patrol Navigation 1 | . . . . 1 . Fabricator Hacks . | . . . . . . Repair Station Hacks 2 | . . . 2 . . Scan Component 1 | . . . 1 . . Repair 1 | . . . 1 . . Recycling Unit Hacks 1 | . 1 . . . . Report Inventory 1 | . 1 . . . . Scanalyzer 2 | . . . 2 . . Insert Component 1 | . . . 1 . . Analyze 1 | . . . 1 . . Garrison Access Hacks 1 | . . . 1 . . Unlock Access 1 | . . . 1 . . Unauthorized Hacks 5 | . 2 . 1 . 2 Terminals 5 | . 2 . 1 . 2 Botnet 4 | . 1 . 1 . 2 Operators 1 | . 1 . . . . Fabricators . | . . . . . . Repair Stations . | . . . . . . Recycling Units . | . . . . . . Scanalyzers . | . . . . . . Garrison Access . | . . . . . . Data Cores Recovered 1 | . 1 . . . . Used . | . . . . . . Hacking Detections 18 | . 6 2 5 1 4 Full Trace Events 2 | . 1 1 . . . Feedback Events . | . . . . . . Feedback Blocked . | . . . . . . Robot Schematics Acquired . | . . . . . . Robots Built . | . . . . . . Authchips . | . . . . . . Time . | . . . . . . Total Robot Build Rating . | . . . . . . Part Schematics Acquired 2 | . 1 . 1 . . Parts Built . | . . . . . . Authchips . | . . . . . . Time . | . . . . . . Total Part Build Rating . | . . . . . . Part Studies Acquired . | . . . . . . Parts Repaired 1 | . . . 1 . . Time 26 | . . . 26 . . Parts Recycled . | . . . . . . Recycled Matter . | . . . . . . Retrieved Matter . | . . . . . . Retrieved Components . | . . . . . . Parts Scanalyzed 1 | . . . 1 . . Part Schematics Acquired 1 | . . . 1 . . Parts Damaged . | . . . . . . Bothacking | -11 -10 -9 -8 -8 -8 ------------ Run | Yrd Mat Mat Mat Gar Mat Used RIF Installer . | . . . . . . Robots Hacked . | . . . . . . Non-combat . | . . . . . . Combat . | . . . . . . Robot Hacks Applied . | . . . . . . Relay Couplers Released 23 | . . . . 23 . Machine Destruction 23 | . . . . 23 . Fabnet Peak Effective % . | . . . . . . Robots Rewired 3 | . . . . 3 . Allies Hacked . | . . . . . . Hacks Repelled . | . . . . . . Allies | -11 -10 -9 -8 -8 -8 -------- Run | Yrd Mat Mat Mat Gar Mat Total Allies 3 | . . . . 3 . Largest Group 3 | . . . . 3 . Highest-Rated Group 30 | . . . . 30 . Highest-Rated Ally 10 | . . . . 10 . Initial Warlord ECA Mod 10 | . . . . . 10 Total Orders . | . . . . . . Ally Attacks 16 | . . . . 16 . Total Damage 329 | . . . . 329 . Kills 3 | . . . . 3 . Allies Corrupted . | . . . . . . Allies Melted . | . . . . . . Intel | -11 -10 -9 -8 -8 -8 ------- Run | Yrd Mat Mat Mat Gar Mat Active Infowar (turns) . | . . . . . . Robot Analysis Total 1 | . 1 . . . . Derelict Logs Recovered . | . . . . . . Drone Launches . | . . . . . . Drone Recoveries . | . . . . . . Exploration | -11 -10 -9 -8 -8 -8 ------------- Run | Yrd Mat Mat Mat Gar Mat Turns Passed 5163 | 88 914 426 934 1382 1419 Spaces Moved 2577 | 47 467 171 442 736 714 Core 1 | 1 . . . . . Treads 193 | 46 130 . 4 . 13 Legs . | . . . . . . Wheels 2383 | . 337 171 438 736 701 Hover . | . . . . . . Flight . | . . . . . . Fastest Speed 50 | 50 160 175 130 135 145 Average Speed 155 | 157 170 181 149 145 152 Slowest Speed 560 | 160 175 190 560 230 560 Overloaded Moves . | . . . . . . Propulsion Burnouts . | . . . . . . Robots Hopped . | . . . . . . Potential Cave-ins . | . . . . . . Cave-ins Triggered . | . . . . . . Exploration Rate (%) 42 | 4 73 23 27 72 58 Regions Visited 5 Branch Regions . Pre-discovered Areas . | . . . . . . Known Exits Taken 1 | . . . 1 . . Unknown Exits Taken 3 | 1 1 1 . . . Scrap Searched . | . . . . . . Spaces Dug 1 | . . . . . 1 Terrain Destroyed 135 | . . 42 4 17 72 Melee . | . . . . . . Projectile 16 | . . . . . 16 AOE 119 | . . 42 4 17 56 Terrain Rammed . | . . . . . . Walls Destroyed . | . . . . . . Machines Disabled . | . . . . . . Actions | -11 -10 -9 -8 -8 -8 --------- Run | Yrd Mat Mat Mat Gar Mat Total 3295 | 58 531 249 611 933 913 Wait 109 | . 3 8 56 1 41 Move 2573 | 46 466 170 442 735 714 Hop . | . . . . . . Pick Up 80 | 6 22 18 10 13 11 Fast Attach 29 | 6 3 1 9 3 7 Attach 23 | . 2 3 5 2 11 Detach 1 | . 1 . . . . Swap 37 | . 1 5 6 11 14 Drop 73 | . 3 17 19 20 14 Fire 259 | . 30 27 64 38 100 Melee 49 | . . . . 49 . Ram 1 | . . . . . 1 Kick . | . . . . . . Crush . | . . . . . . Escape Stasis 32 | . . . . 32 . Rewire 29 | . . . . 29 . Trap . | . . . . . . Miscellaneous . | . . . . . . Route ------- -11/Scrapyard -10/Materials (discovered 5 exits: *Mat x2 / [*Min x2] / [*Sub]) -9/Materials (discovered 3 exits: *Mat / *Min x2) -8/Materials (discovered 2 exits: [*Fac] / Gar) -8/Garrison (discovered 3 exits: *Mat x3) -8/Materials History --------- Turn | Location | Event 34 | -11/Scrapyard | Discovered new exit (range 15) 89 | -11/Scrapyard | Entered Materials 318 | -10/Materials | Build established: Mutant 507 | -10/Materials | Discovered new exit (range 3) 638 | -10/Materials | Discovered new exit (range 12) 770 | -10/Materials | Discovered new exit (range 12) 930 | -10/Materials | Discovered new exit (range 8) 1000 | -10/Materials | Discovered new exit (range 10) 1003 | -10/Materials | Entered another Materials area 1003 | -9/Materials | Evolved 2 slots: Propulsion x1, Utility x1 1164 | -9/Materials | Discovered new exit (range 11) 1418 | -9/Materials | Discovered new exit (range 3) 1426 | -9/Materials | Identified exit to Mines 1429 | -9/Materials | Entered another Materials area 1429 | -8/Materials | Evolved 2 slots: Propulsion x1, Weapon x1 1502 | -8/Materials | Garrison activated, responded to threat 1786 | -8/Materials | Build established: Tank 1842 | -8/Materials | Garrison activated, responded to threat 1913 | -8/Materials | Discovered new exit (range 5) 2065 | -8/Materials | Repaired Com. Wheel 2363 | -8/Materials | Identified exit to Garrison 2363 | -8/Materials | Entered Garrison 2540 | -8/Garrison | Triggered checkpoint 2561 | -8/Garrison | Triggered checkpoint 2602 | -8/Garrison | Destroyed 8 combat bots 2650 | -8/Garrison | Discovered new exit (range 79) 2650 | -8/Garrison | Discovered new exit (range 87) 2650 | -8/Garrison | Discovered new exit (range 47) 2770 | -8/Garrison | Garrison Relay disabled 2811 | -8/Garrison | Triggered checkpoint 2905 | -8/Garrison | Garrison Relay disabled 2925 | -8/Garrison | Triggered checkpoint 3069 | -8/Garrison | Garrison Relay disabled 3215 | -8/Garrison | Triggered checkpoint 3218 | -8/Garrison | Build established: Scavenger-Mutant 3385 | -8/Garrison | Triggered checkpoint 3420 | -8/Garrison | Garrison Relay disabled 3567 | -8/Garrison | Triggered checkpoint 3581 | -8/Garrison | Garrison Relay disabled 3583 | -8/Garrison | Garrison Relay disabled 3694 | -8/Garrison | Build established: Scavenger-Gunner 3745 | -8/Garrison | Entered Materials 4060 | -8/Materials | Met 7R-MNS 4260 | -8/Materials | Build established: Gunner 4503 | -8/Materials | Core integrity fell below 50% 4545 | -8/Materials | First assault squad dispatched 4587 | -8/Materials | Build established: Scavenger-Gunner 4704 | -8/Materials | Lost 4 parts (1p1n2w) 5096 | -8/Materials | Garrison activated, responded to threat 5139 | -8/Materials | Core integrity fell below 20% 5164 | -8/Materials | Destroyed by H-61 Shepherd with Heavy Assault Cannon Last Messages --------------- 05133_ Rocket Launcher destroyed. 05135_ Lgt. Treads destroyed. 05135_ Hadron Collector disabled. 05136_ The unstable cave ceiling collapses. 05138_ Penetrated by Slug. 05138_ G-47 Trooper destroyed. 05139_ The unstable cave ceiling collapses. 05140_ K-01 Serf collects debris. 05143_ K-01 Serf destroyed. 05146_ Acquired 8 matter. 05149_ Penetrated by Slug. 05149_ Hadron Collector disabled. 05152_ Acquired 8 matter. 05154_ The unstable cave ceiling collapses. 05154_ Penetrated by Slug. 05154_ Adv. Assault Cannon destroyed. 05159_ Lgt. Treads destroyed. 05163_ G-47 Trooper destroyed. 05164_ U-05 Engineer lays Concrete. 05164_ Penetrated by Slug. Map ----- +----------------------------------------------------+ | ????????# #????????????????????????????? | | ##??????# #????????????????????????????? | | #??????# #????????????????????????????? | | #??????# #????????????????????????????? | | #??????# #????????????????????????????? | | #??????# #????????????? ?????????????? | | #??????# #????????????? ?????????????? | | #??????# #????????????? #????????????? | | ##??????# #????????????? /????????????? | | #######?# #??????????#?# #????????????? | | #?# #????????#! ## ##?###???????? | | #?# ##??????#! #? ????????? | | #?#^##???????! % # ????????? | | #?# ##???????? %u + ! ????????? | | % #?# #????????? ? ?????????? | | [ #?# #?????????? # ## ""????????? | | #?#!#??????????# ""????????? | | ###+###?#[##????????## %[ "?????????? | | ??# #####%########### #%H ??????????? | | ??# %%%=%*=[ ! !==%== = #??????????? | | ### ###########"#### %% #####???????? | | # % [*#?#### #???????? | | + ! ="#????#""" = #???????? | | ##### ##????#"R [ #???????? | | ????# [ #?????#""" #???????? | | ????# #?????# %@ % #???????? | | #???#= ! #?????#### % ####???????? | | #######+############### = ?????????? | | ##u ???????? | | + #?????? | | ##*" "g "" #?????? | | #######+######+### ##=="" """ #?????? | | #?# # ##????#=""" """ #?????? | | #?# # ##????#%""" """ #?????? | | #?# # """ ##????#=[% ????????? | | ### """ # """ # ????###??###????????? | | / """ # """ # ????????????????????? | | ### """ # # ????????????????????? | | ################## ????????????????????? | | #????????????# ????????????????????? | | """ #??????????####????????????????????? | | """ #??????????# ????????????????????? | | """ #??????????#"""????????????????????? | | #??????????#"""????????????????????? | | "#??????????#"""????????????????????? | | T#??????????# ????????????????????? | | "#??????????#"""????????????????????? | | #??????????#"""????????????????????? | | #####??????????#"""????????????????????? | | #??????????????# ???#############????? | +----------------------------------------------------+ Best States ------------- Heat Dissipation 53 Energy Generation 14 Energy Capacity 275 Matter Stores 300 Matter Capacity 300 Sight Range 16 Terrain Scan Density 10 Armor Coverage 375 Evasion (%) 40 Recoil Reduction 5 Kinecelleration 30 Offensive Hacking 10 Item Schematics ----------------- Hcp. Storage Unit | -10/Materials | Hacked Med. Storage Unit | -8/Materials | Scanalyzed Robot Schematics ------------------ None Fabricated ------------ Nothing Repaired ---------- Com. Wheel | 40% | -8/Materials Studied --------- None Alien Tech Used ----------------- None Achievements -------------- None Challenges ------------ None Game ------ Seed ExpertDoorCompressor Manual? 0 Play Time 00:49:18 Cumulative 375.5 hours Start 2026.07.29 @ 23:39:05 End 2026.07.30 @ 22:57:47 Sessions 3 Manual Loads 0 Difficulty Rogue Special Mode None Game No. 194 Rogue 194 Adventurer 0 Explorer 0 Win Type - Total 7 Types 4/0/1/1/0/0/0/1/0/0 Lore% 70 Gallery% 72 Achievement% 63 Wizard Run 0 Options --------- Layout 1 ASCII 0 Keyboard 0 Movement Mouse Keybinds 0 Fullscreen 1 Font 18/SmallcapsGlow Map View 54x44 Zoom Use 0% Tactical HUD 1 Map Filters NONE Filters NONE Steam 0 RUN: 04a83ca4-6ac0-4c40-8964-719126919dc0